[Event "FIJ Cannes 2024"]
[Site "Cannes"]
[Date "2024.02.24"]
[Round "8.2"]
[White "Tarhan, Adar"]
[Black "Puranik, Abhimanyu"]
[Result "1-0"]
[ECO "A01"]
[WhiteElo "2420"]
[BlackElo "2645"]
[Annotator "TA"]
[PlyCount "105"]
[EventDate "2024.02.20"]
[EventType "swiss"]
[EventCountry "FRA"]
[SourceTitle "playchess.com"]
[Source "ChessBase"]
[SourceQuality "1"]
[TimeControl "40/5400+30:1800+30"]

{[%evp 18,105,54,36,79,69,72,73,85,82,95,84,100,91,127,117,109,101,101,124,97,22,114,118,228,226,277,285,291,273,288,278,275,275,257,219,233,234,229,230,219,231,235,221,293,289,303,299,305,269,369,366,396,396,378,365,384,383,336,320,423,423,423,409,423,422,413,408,408,403,632,460,554,468,591,482,710,687,766,636,951,951,1010,933,940,933,1311,1149,2280,1064]} 1. b3 {[%emt 0:10:04]} e5 {[%emt 0:02:20]} 2. Bb2 {[%emt 0:01:39]} Nc6 {[%emt 0:00:05]} 3. e3 {[%emt 0:00:07]} d5 {[%emt 0:00:37]} 4. Bb5 {[%emt 0:00:07]} Bd6 {[%emt 0:00:04]} 5. Nf3 {[%emt 0:00:42]} Qe7 {[%emt 0:05:54]} 6. c4 {[%emt 0:06:05]} a6 {[%emt 0:03:24] A01: Nimzowitsch-Larsen Opening.} 7. Ba4 {[%emt 0:00:19]} Nf6 {[%emt 0:07:16]} 8. c5 $146 {[%emt 0:14:15]} ({Predecessor:} 8. Nc3 O-O 9. Bxc6 bxc6 10. Ne2 Bg4 11. c5 Bxc5 12. Nxe5 Bd6 13. Nxc6 Qe6 14. Ned4 {1-0 Mavrich,D (2232)-Litovicius,M (2226) Neuquen Patagonia op 1st 2015 (9)}) 8... Bxc5 {[%emt 0:00:12]} 9. Nxe5 {[%emt 0:01:30]} O-O {[%emt 0:14:55]} 10. Bxc6 {[%emt 0:02:53]} bxc6 {[%emt 0:00:03]} 11. Nxc6 {[%emt 0:00:30]} Qe8 {[%emt 0:06:39]} 12. Nd4 {[%emt 0:04:15]} Bd6 {[%emt 0:03:27]} 13. O-O {[%emt 0:06:11]} c5 {[%emt 0:11:35]} 14. Nf3 {[%emt 0:01:13]} Qe7 {[%emt 0:00:03]} 15. d4 {[%emt 0:02:27]} Bg4 {[%emt 0:00:25]} 16. dxc5 {[%emt 0:03:46]} Bxc5 {[%emt 0:00:08]} 17. Nc3 {[%emt 0:00:42]} Rfd8 {[%emt 0:03:44]} 18. Ne2 {[%emt 0:00:10]} Ne4 {[%emt 0:08:57]} 19. Ne5 {[%emt 0:11:54]} (19. Nfd4 $16) 19... Bh5 {[%emt 0:00:38]} (19... d4 $1 $11 {keeps the balance.} 20. Nxg4 dxe3) 20. Qd3 $16 {[%emt 0:00:29]} (20. Nc6 Qg5 21. Qd3 (21. Nxd8 Bf3 $17) 21... Rdc8) 20... Bd6 {[%emt 0:01:01]} (20... Qe8 $16) 21. Nc6 $18 {[%emt 0:00:06]} (21. Qxd5 $2 Bxe5 (21... Bxe2 $2 22. Qxe4 Bxf1 23. Kxf1 $19) 22. Qxe5 Qxe5 23. Bxe5 Bxe2 $19) 21... Qc7 {[%emt 0:20:03]} 22. Nxd8 {[%emt 0:00:30]} Bxh2+ {[%emt 0:00:03]} 23. Kh1 {[%emt 0:00:08]} Rxd8 {[%emt 0:00:02]} 24. f3 {[%emt 0:03:41]} (24. Qxa6 $2 Nc5 25. Rfc1 (25. Qb5 $2 Rb8 $19) 25... Nxa6 $19) 24... Qd6 {[%emt 0:03:23]} 25. Qd4 {[%emt 0:03:32]} f6 {[%emt 0:00:11]} 26. fxe4 {[%emt 0:05:52]} Bxe2 {[%emt 0:00:03] [#]} 27. Rf2 $1 {[%emt 0:00:38]} ({But not} 27. Qxd5+ $6 Qxd5 28. exd5 Bxf1 $16) 27... Be5 {[%emt 0:00:49]} 28. Qxd5+ {[%emt 0:00:15]} Qxd5 {[%emt 0:00:03]} 29. exd5 {[%emt 0:00:04]} Bxb2 {[%emt 0:00:02]} 30. Rb1 {[%emt 0:00:06]} Be5 {[%emt 0:00:05]} 31. Rxe2 {[%emt 0:00:04]} Rxd5 {[%emt 0:00:05]} 32. b4 {[%emt 0:00:33]} Kf7 {[%emt 0:01:17]} 33. a4 {[%emt 0:01:10]} Ke7 {[%emt 0:00:56]} 34. Rc2 {[%emt 0:03:30]} Rd7 {[%emt 0:01:35]} 35. a5 {[%emt 0:03:43]} Ra7 {[%emt 0:01:35]} 36. b5 {[%emt 0:00:38]} axb5 {[%emt 0:00:03]} 37. Rxb5 {[%emt 0:00:03]} Kd7 {[%emt 0:00:05]} 38. Ra2 {[%emt 0:01:47]} h5 {[%emt 0:01:21]} 39. a6 {[%emt 0:00:23]} Kc6 {[%emt 0:00:04]} 40. Rb4 {[%emt 0:00:50]} g5 {[%emt 0:00:43]} 41. Rc2+ {[%emt 0:30:05]} Kd6 {[%emt 0:30:03]} 42. Rb6+ {[%emt 0:01:21]} Kd5 {[%emt 0:00:04]} 43. Ra2 {[%emt 0:01:00]} h4 {[%emt 0:01:01]} (43... Kc5 $142 44. Rb1 (44. Rb7 Rxb7 45. axb7 Kb6 $18) 44... h4) 44. Rb7 {[%emt 0:00:36]} Ra8 {[%emt 0:00:31]} 45. a7 {[%emt 0:00:12]} Ke4 {[%emt 0:00:36]} 46. Rb3 {[%emt 0:00:51]} Kf5 {[%emt 0:01:58]} (46... Kd5 $142 47. Kg1 Bg3) 47. Ra5 $18 {[%emt 0:00:36]} Kg4 {[%emt 0:01:48]} 48. Kg1 {[%emt 0:00:48]} h3 {[%emt 0:00:00]} 49. Ra4+ {[%emt 0:00:00]} Kg3 {[%emt 0:00:00]} 50. e4+ {[%emt 0:00:00]} Kf4 {[%emt 0:00:00]} 51. Rxh3 {[%emt 0:00:00]} ({Not} 51. gxh3 Rxa7 52. Rxa7 Bd4+ 53. Kg2 Bxa7 54. Rf3+ Kxe4 55. Rxf6 Bd4 $18) 51... g4 {[%emt 0:00:00]} 52. Rd3 {[%emt 0:00:00]} Bc7 {[%emt 0:00:00]} 53. g3+ {[%emt 0:00:00]} 1-0

[Event "FIJ Cannes 2024"]
[Site "Cannes"]
[Date "2024.02.24"]
[Round "8.3"]
[White "Vetokhin, Savva"]
[Black "Zhao, Yuanhe"]
[Result "1-0"]
[ECO "E91"]
[WhiteElo "2410"]
[BlackElo "2449"]
[Annotator "TA"]
[PlyCount "69"]
[EventDate "2024.02.20"]
[EventType "swiss"]
[EventCountry "FRA"]
[SourceTitle "playchess.com"]
[Source "ChessBase"]
[SourceQuality "1"]
[TimeControl "40/5400+30:1800+30"]

{[%evp 16,69,51,44,56,43,80,89,101,75,83,87,82,76,80,68,60,65,66,52,95,78,99,100,138,131,131,125,156,123,145,145,138,132,180,169,185,184,273,274,277,279,269,244,276,292,449,464,918,955,1193,1208,1190,1182,1069,616]} 1. d4 {[%emt 0:00:06]} Nf6 {[%emt 0:00:31]} 2. c4 {[%emt 0:00:11]} g6 {[%emt 0:00:26]} 3. Nc3 {[%emt 0:00:19]} Bg7 {[%emt 0:01:48]} 4. e4 {[%emt 0:00:45][%cal Be2e4,Be4e5][%mdl 32]} d6 {[%emt 0:00:04]} 5. Nf3 {[%emt 0:00:13][%cal Bg1f3,Bf3g5,Bg5e4,Be4c5][%mdl 32]} O-O {[%emt 0:00:09]} 6. Be2 {[%emt 0:00:05]} c6 {[%emt 0:02:08]} 7. O-O {[%emt 0:01:31]} a6 {[%emt 0:00:08]} 8. e5 {[%emt 0:02:33]} Ne8 {[%emt 0:05:30]} 9. Bf4 {[%emt 0:04:17]} Bg4 {[%emt 0:03:43]} 10. Ng5 {[%emt 0:08:08]} Bxe2 {[%emt 0:02:45]} 11. Qxe2 {[%emt 0:01:55]} h6 {[%emt 0:00:22] White is better.} 12. Nge4 {[%emt 0:00:35]} d5 {[%emt 0:01:56]} 13. cxd5 {[%emt 0:09:34]} cxd5 {[%emt 0:00:07]} 14. Nc5 {[%emt 0:00:10]} b6 {[%emt 0:00:34]} 15. Nb3 {[%emt 0:01:25]} Nc7 {[%emt 0:00:38]} 16. Rac1 {[%emt 0:00:34]} Qd7 {[%emt 0:06:12]} 17. Be3 {[%emt 0:06:19]} Ra7 {[%emt 0:04:20] White leaves nothing to chance now.} 18. f4 {[%emt 0:03:40][%cal Of4f5] f5! would now be deadly.} f5 {[%emt 0:00:09]} 19. exf6 {[%emt 0:05:34]} Rxf6 {[%emt 0:01:28] [#]} 20. Nd2 $1 {[%emt 0:02:44]} Nc6 {[%emt 0:03:45]} 21. Nf3 {[%emt 0:01:48]} Ra8 {[%emt 0:00:39]} 22. Ne5 {[%emt 0:01:13]} Nxe5 {[%emt 0:00:09]} 23. dxe5 {[%emt 0:03:32]} Rc6 {[%emt 0:00:12]} 24. Qd3 {[%emt 0:00:11]} Kh7 {[%emt 0:24:14]} (24... Rf8 $16 25. h3 Kh8) 25. Ne2 $18 {[%emt 0:01:16]} Rxc1 {[%emt 0:02:40]} 26. Rxc1 {[%emt 0:00:13]} (26. Nxc1 Rf8 $16) 26... b5 {[%emt 0:00:25]} (26... Ne6 {is a better defense.} 27. f5 (27. Bxb6 Qb7 $16) 27... Nf8) 27. Nd4 {[%emt 0:00:38] [#] aiming for Rc6.} Ne6 {[%emt 0:04:18]} 28. Rc6 {[%emt 0:00:17]} Nf8 {[%emt 0:01:52]} 29. Qc2 {[%emt 0:08:04] Black is weak on the dark squares} Kh8 {[%emt 0:05:23]} 30. Rc7 {[%emt 0:00:30]} Qg4 {[%emt 0:00:18]} (30... Qe8 {might work better.} 31. Qc5 e6) 31. h3 {[%emt 0:01:15] White is clearly winning.} (31. Rxe7 $2 {loses.} Qh4 32. h3 Qxe7 $19) 31... Qg3 {[%emt 0:00:22]} (31... Qh5 $142 32. Nf3 (32. Rxe7 Qh4 $18) 32... d4) 32. Qd2 {[%emt 0:00:10] Active counter play!} Qh4 {[%emt 0:01:12]} 33. Nf3 {[%emt 0:00:05][%csl LRd5,LRh4]} Qh5 {[%emt 0:00:05]} 34. Qxd5 {[%emt 0:00:06]} Rb8 {[%emt 0:00:14]} 35. Qf7 {[%emt 0:00:39] Weighted Error Value: White=0.04 (flawless) /Black=0.29 (precise) .  Mistake:       	---       	Black=4      Inaccurate:     	---       	Black=3      OK:         	White=13    	Black=9      Best:        	White=1     	---        Strong:       	White=1     	---} 1-0

[Event "FIJ Cannes 2024"]
[Site "Cannes"]
[Date "2024.02.24"]
[Round "8.4"]
[White "Li, Di"]
[Black "Chen, Qi b"]
[Result "1-0"]
[ECO "D35"]
[WhiteElo "2563"]
[BlackElo "2467"]
[Annotator "TA"]
[PlyCount "69"]
[EventDate "2024.02.20"]
[EventType "swiss"]
[EventCountry "FRA"]
[SourceTitle "playchess.com"]
[Source "ChessBase"]
[SourceQuality "1"]
[TimeControl "40/5400+30:1800+30"]

{[%evp 12,69,27,2,23,20,18,15,34,22,79,58,82,74,80,0,0,0,0,-2,21,21,25,16,8,35,22,0,0,0,19,2,41,48,45,46,48,42,56,70,54,46,125,82,252,222,225,237,356,368,374,370,476,447,800,783,748,741,1954,998]} 1. c4 {[%emt 1:31:00]} Nf6 {[%emt 1:31:00]} 2. Nf3 {[%emt 0:00:30]} e6 {[%emt 0:00:30]} 3. d4 {[%emt 0:00:30]} d5 {[%emt 0:00:30]} 4. Nc3 {[%emt 0:00:30]} Nbd7 {[%emt 0:00:30]} 5. cxd5 {[%emt 0:00:30]} exd5 {[%emt 0:00:30]} 6. Bf4 {[%emt 0:00:30]} Bb4 {[%emt 0:00:30]} 7. e3 {[%emt 0:00:30]} Ne4 {[%emt 0:00:30]} 8. Qc2 {[%emt 0:00:30]} g5 {[%emt 0:00:30]} 9. Be5 {[%emt 0:00:30]} Rg8 {[%emt 0:00:30] The position is equal.} 10. Bd3 {[%emt 0:00:30]} g4 {[%emt 0:00:30]} (10... Bxc3+ $11 11. bxc3 g4 12. Bxe4 dxe4 13. Qxe4 Qe7 14. Qxh7 Rf8) 11. Bxe4 $16 {[%emt 0:00:30]} dxe4 {[%emt 0:00:30] [#]} 12. Nd2 {[%emt 0:00:30]} (12. Qxe4 Bxc3+ 13. bxc3 Qe7 14. Qxh7 Rf8 $14) 12... Bxc3 {[%emt 0:00:30]} 13. bxc3 {[%emt 0:00:30]} (13. Qxc3 $16 Nxe5 14. dxe5) 13... Nxe5 $11 {[%emt 0:00:30]} 14. Qxe4 {[%emt 0:00:30]} Qe7 {[%emt 0:00:30]} 15. Qxh7 {[%emt 0:00:30]} ({But not} 15. Qxe5 Qxe5 16. dxe5 Rg5 $17) 15... Rf8 {[%emt 0:00:30]} 16. dxe5 {[%emt 0:00:30]} Qxe5 {[%emt 0:00:30][%cal Oc8f5]} 17. Qe4 {[%emt 0:00:30]} Qxe4 {[%emt 0:00:30]} 18. Nxe4 {[%emt 0:00:30]} Ke7 {[%emt 0:00:30] Prevents Nf6} 19. f4 {[%emt 0:00:30]} gxf3 {[%emt 0:00:30]} 20. gxf3 {[%emt 0:00:30]} b6 {[%emt 0:00:30]} 21. Kf2 {[%emt 0:00:30]} Rh8 {[%emt 0:00:30]} 22. h4 {[%emt 0:00:30][%cal Bh2h4,Bh4h5,Bh5h6,Bh6h7][%mdl 32]} Be6 {[%emt 0:00:30]} 23. h5 {[%emt 0:00:30]} Rad8 {[%emt 0:00:30]} 24. h6 {[%emt 0:00:30]} Bf5 {[%emt 0:00:30]} 25. Ng3 {[%emt 0:00:30]} Be6 {[%emt 0:00:30]} 26. e4 {[%emt 0:00:30]} Rd3 {[%emt 0:00:30]} ({Black should try} 26... Rh7 $1 $14) 27. Ne2 {[%emt 0:00:30]} c5 $2 {[%emt 0:00:30] Black cannot hold the game after this.} (27... Rh7 $16) 28. h7 $18 {[%emt 0:00:30]} Bc4 {[%emt 0:00:30] [#]} 29. Ng3 $1 {[%emt 0:00:30]} Be6 {[%emt 0:00:30]} (29... Kf8 $142 30. Nf5 Be6) 30. Rag1 {[%emt 0:00:30]} Kf8 {[%emt 0:00:30]} 31. Rh6 {[%emt 0:00:30]} Rxc3 {[%emt 0:00:30]} 32. Nh5 {[%emt 0:00:30] And now Nf6 would win. White is clearly winning.} Rc2+ {[%emt 0:00:30]} (32... Rd3 $142 33. f4 Bc4) 33. Ke3 {[%emt 0:00:30] Nf6 would now be deadly.} Rh2 {[%emt 0:00:30]} 34. e5 {[%emt 0:00:30][%cal Oh5f6] Nf6! is the strong threat.} Bf5 {[%emt 0:00:30] [#]} 35. Rg8+ $1 {[%emt 0:00:30][%mdl 512] Weighted Error Value: White=0.08 (flawless) /Black=0.33.  Loses game:     	---       	Black=1      Mistake:       	White=1     	Black=4      Inaccurate:     	White=1     	Black=1      OK:         	White=12    	Black=10     Best:        	White=5     	---        Strong:       	White=1     	---} 1-0

[Event "FIJ Cannes 2024"]
[Site "Cannes"]
[Date "2024.02.24"]
[Round "8.5"]
[White "Bergasse, Clement"]
[Black "Racle, Valentin"]
[Result "1/2-1/2"]
[ECO "C45"]
[WhiteElo "1779"]
[BlackElo "2086"]
[Annotator "NA RC"]
[PlyCount "40"]
[EventDate "2024.02.20"]
[EventType "swiss"]
[EventCountry "FRA"]
[SourceTitle "playchess.com"]
[Source "ChessBase"]
[SourceQuality "1"]
[TimeControl "40/5400+30:1800+30"]

1. e4 {[%emt 1:31:00]} e5 {[%emt 1:31:00]} 2. Nf3 {[%emt 0:00:30]} Nc6 {[%emt 0:00:30]} 3. d4 {[%emt 0:00:30]} exd4 {[%emt 0:00:30]} 4. Nxd4 {[%emt 0:00:30]} Nf6 {[%emt 0:00:30]} 5. Nxc6 {[%emt 0:00:30]} bxc6 {[%emt 0:00:30]} 6. e5 {[%emt 0:00:30]} Qe7 {[%emt 0:00:30]} 7. Qe2 {[%emt 0:00:30]} Nd5 {[%emt 0:00:30]} 8. h4 {[%emt 0:00:30]} a5 {[%emt 0:00:30]} 9. g3 {[%emt 0:00:30]} Ba6 {[%emt 0:00:30]} 10. c4 {[%emt 0:00:30]} Nb6 {[%emt 0:00:30]} 11. b3 {[%emt 0:00:30]} Qe6 {[%emt 0:00:30]} 12. Bh3 {[%emt 0:00:30]} Bb4+ {[%emt 0:00:30]} 13. Bd2 {[%emt 0:00:30]} Qe7 {[%emt 0:00:30]} 14. O-O {[%emt 0:00:30]} O-O-O {[%emt 0:00:30]} 15. Re1 {[%emt 0:00:30]} Rde8 {[%emt 0:00:30]} 16. Bxb4 {[%emt 0:00:30]} Qxb4 {[%emt 0:00:30]} 17. Qd2 {[%emt 0:00:30]} Re7 {[%emt 0:00:30]} 18. Qxb4 {[%emt 0:00:30]} axb4 {[%emt 0:00:30]} 19. Nd2 {[%emt 0:00:30]} Rhe8 {[%emt 0:00:30]} 20. f4 {[%emt 0:00:30]} f6 {[%emt 0:00:30]} 1/2-1/2

[Event "FIJ Cannes 2024"]
[Site "Cannes"]
[Date "2024.02.24"]
[Round "8.6"]
[White "Yarur Rescaglio, Maria Jose"]
[Black "Roberts, Tallulah"]
[Result "1-0"]
[ECO "C02"]
[WhiteElo "1280"]
[BlackElo "1488"]
[Annotator "NA RC"]
[PlyCount "53"]
[EventDate "2024.02.20"]
[EventType "swiss"]
[EventCountry "FRA"]
[SourceTitle "playchess.com"]
[Source "ChessBase"]
[SourceQuality "1"]
[TimeControl "40/5400+30:1800+30"]

1. e4 {[%emt 0:00:45]} e6 {[%emt 0:00:02]} 2. d4 {[%emt 0:00:28]} d5 {[%emt 0:00:02]} 3. e5 {[%emt 0:00:10]} c5 {[%emt 0:00:02]} 4. Nf3 {[%emt 0:00:10]} cxd4 {[%emt 0:00:07]} 5. Bd3 {[%emt 0:00:53]} Nc6 {[%emt 0:01:08]} 6. O-O {[%emt 0:00:21]} Qb6 {[%emt 0:00:31]} 7. a3 {[%emt 0:01:25]} Bd7 {[%emt 0:02:50]} 8. b4 {[%emt 0:03:11]} Nge7 {[%emt 0:01:26]} 9. Bf4 {[%emt 0:00:19]} Ng6 {[%emt 0:06:03]} 10. Bg3 {[%emt 0:00:11]} Qc7 {[%emt 0:05:23]} 11. Re1 {[%emt 0:00:50]} Nge7 {[%emt 0:02:30]} 12. Nbd2 {[%emt 0:01:19]} Nf5 {[%emt 0:01:34]} 13. Bxf5 {[%emt 0:01:06]} g6 {[%emt 0:09:30]} 14. Bd3 {[%emt 0:04:26]} Bg7 {[%emt 0:00:27]} 15. Nb3 {[%emt 0:01:15]} a6 {[%emt 0:03:09]} 16. Nbxd4 {[%emt 0:01:15]} Rc8 {[%emt 0:01:48]} 17. Nxc6 {[%emt 0:01:22]} Bxc6 {[%emt 0:00:47]} 18. Nd4 {[%emt 0:01:39]} Bd7 {[%emt 0:02:33]} 19. f4 {[%emt 0:03:19]} h5 {[%emt 0:04:47]} 20. Bh4 {[%emt 0:08:07]} Qb6 {[%emt 0:01:19]} 21. Bf2 {[%emt 0:02:04]} Qd8 {[%emt 0:01:14]} 22. Qf3 {[%emt 0:03:28]} Ba4 {[%emt 0:04:43]} 23. Rac1 {[%emt 0:01:17]} Rc3 {[%emt 0:01:04]} 24. Bb5+ {[%emt 0:01:36]} Bxb5 {[%emt 0:02:22]} 25. Qxc3 {[%emt 0:00:14]} Bd7 {[%emt 0:00:21]} 26. Qf3 {[%emt 0:01:17]} h4 {[%emt 0:01:22]} 27. h3 {[%emt 0:01:24]} 1-0

[Event "FIJ Cannes 2024"]
[Site "Cannes"]
[Date "2024.02.25"]
[Round "9.1"]
[White "Bharath Subramaniyam H"]
[Black "Tarhan, Adar"]
[Result "1-0"]
[ECO "B00"]
[WhiteElo "2515"]
[BlackElo "2420"]
[Annotator "ChessBase"]
[PlyCount "79"]
[EventDate "2024.02.20"]
[EventType "swiss"]
[EventCountry "FRA"]
[SourceTitle "playchess.com"]
[Source "ChessBase"]
[SourceQuality "1"]
[TimeControl "40/5400+30:1800+30"]

1. e4 {[%emt 0:03:33]} Nc6 {[%emt 0:08:42]} 2. Nc3 {[%emt 0:00:32]} Nf6 {[%emt 0:05:26]} 3. d4 {[%emt 0:01:39]} d6 {[%emt 0:05:29]} 4. Nf3 {[%emt 0:01:34]} g6 {[%emt 0:00:21]} 5. Bg5 {[%emt 0:15:20]} Bg7 {[%emt 0:01:49]} 6. Be2 {[%emt 0:12:16]} O-O {[%emt 0:04:11]} 7. Qd2 {[%emt 0:00:51]} Re8 {[%emt 0:05:55]} 8. h3 {[%emt 0:04:14]} e5 {[%emt 0:07:24]} 9. dxe5 {[%emt 0:05:31]} Nxe5 {[%emt 0:10:11]} 10. Nxe5 {[%emt 0:00:46]} Rxe5 {[%emt 0:00:05]} 11. f4 {[%emt 0:01:26]} Rxg5 {[%emt 0:00:04]} 12. fxg5 {[%emt 0:00:10]} Nd7 {[%emt 0:00:03]} 13. O-O {[%emt 0:11:17]} Nc5 {[%emt 0:01:17]} 14. Bc4 {[%emt 0:13:03]} Be6 {[%emt 0:00:10]} 15. Bxe6 {[%emt 0:02:49]} Nxe6 {[%emt 0:02:10]} 16. e5 {[%emt 0:03:50]} Bxe5 {[%emt 0:01:37]} 17. Ne4 {[%emt 0:00:02]} Kg7 {[%emt 0:05:18]} 18. c3 {[%emt 0:02:07]} d5 {[%emt 0:00:45]} 19. Nf6 {[%emt 0:01:12]} Nxg5 {[%emt 0:00:10]} 20. Ng4 {[%emt 0:00:23]} f6 {[%emt 0:02:05]} 21. h4 {[%emt 0:05:44]} Nf7 {[%emt 0:01:30]} 22. h5 {[%emt 0:00:16]} c6 {[%emt 0:01:08]} 23. Rae1 {[%emt 0:01:45]} Qd6 {[%emt 0:05:01]} 24. h6+ {[%emt 0:02:56]} Kg8 {[%emt 0:00:04]} 25. Qf2 {[%emt 0:00:52]} f5 {[%emt 0:02:08]} 26. Nxe5 {[%emt 0:00:12]} Nxe5 {[%emt 0:00:04]} 27. Qg3 {[%emt 0:03:20]} Qc5+ {[%emt 0:00:54]} 28. Qe3 {[%emt 0:00:29]} Qxe3+ {[%emt 0:00:33]} 29. Rxe3 {[%emt 0:00:01]} Ng4 {[%emt 0:00:26]} 30. Re7 {[%emt 0:00:14]} Nxh6 {[%emt 0:00:22]} 31. Rfe1 {[%emt 0:01:00]} f4 {[%emt 0:01:33]} 32. Rxb7 {[%emt 0:00:40]} Nf5 {[%emt 0:00:05]} 33. Re6 {[%emt 0:02:18]} c5 {[%emt 0:00:08]} 34. Rc6 {[%emt 0:00:26]} Re8 {[%emt 0:00:04]} 35. Rxc5 {[%emt 0:00:25]} Ng3 {[%emt 0:00:04]} 36. Kh2 {[%emt 0:01:20]} Nf1+ {[%emt 0:03:29]} 37. Kh3 {[%emt 0:00:53]} Ne3 {[%emt 0:00:03]} 38. Rcc7 {[%emt 0:00:43]} Nf5 {[%emt 0:00:23]} 39. Rxh7 {[%emt 0:00:32]} Re3+ {[%emt 0:01:54]} 40. Kg4 {[%emt 0:01:00]} 1-0

[Event "FIJ Cannes 2024"]
[Site "Cannes"]
[Date "2024.02.25"]
[Round "9.2"]
[White "Vetokhin, Savva"]
[Black "Nogerbek, Kazybek"]
[Result "1/2-1/2"]
[ECO "D55"]
[WhiteElo "2410"]
[BlackElo "2463"]
[Annotator "TA"]
[PlyCount "47"]
[EventDate "2024.02.20"]
[EventType "swiss"]
[EventCountry "FRA"]
[SourceTitle "playchess.com"]
[Source "ChessBase"]
[SourceQuality "1"]
[TimeControl "40/5400+30:1800+30"]

{[%evp 14,47,15,13,9,10,22,6,17,9,12,13,15,11,16,16,21,12,16,0,19,19,16,11,12,12,18,5,16,9,18,8,8,1,6,0]} 1. d4 {[%emt 0:00:05]} Nf6 {[%emt 0:00:11]} 2. c4 {[%emt 0:00:13]} e6 {[%emt 0:00:10]} 3. Nf3 {[%emt 0:00:18]} d5 {[%emt 0:00:13]} 4. Nc3 {[%emt 0:00:21]} Be7 {[%emt 0:00:34]} 5. Bg5 {[%emt 0:00:24]} h6 {[%emt 0:00:38]} 6. Bxf6 {[%emt 0:01:53]} Bxf6 {[%emt 0:00:09]} 7. e3 {[%emt 0:00:04]} O-O {[%emt 0:00:27]} 8. Rc1 {[%emt 0:00:08] The position is equal.} dxc4 {[%emt 0:01:04]} 9. Bxc4 {[%emt 0:01:17]} Nd7 {[%emt 0:00:29]} 10. Ne4 {[%emt 0:00:57]} c5 {[%emt 0:00:44]} 11. Nxf6+ {[%emt 0:00:36]} Qxf6 {[%emt 0:00:12]} 12. Bb5 {[%emt 0:00:10]} cxd4 {[%emt 0:00:34]} 13. Qxd4 {[%emt 0:00:07]} Qxd4 {[%emt 0:00:34]} 14. Nxd4 {[%emt 0:00:26]} Nf6 {[%emt 0:00:09]} 15. Nf3 {[%emt 0:06:08]} Rd8 {[%emt 0:01:55]} 16. Ke2 {[%emt 0:01:58]} Bd7 {[%emt 0:08:21]} 17. Bxd7 {[%emt 0:01:32]} Rxd7 {[%emt 0:00:42]} 18. Rhd1 {[%emt 0:01:10]} Rxd1 {[%emt 0:02:03]} 19. Kxd1 $11 {[%emt 0:00:28] KRN-KRN} Ne8 {[%emt 0:06:15] Prevents Rc7} 20. Ne5 {[%emt 0:03:07]} Kf8 {[%emt 0:02:06]} 21. Ke2 {[%emt 0:02:05]} Nd6 {[%emt 0:02:35]} 22. Rc7 {[%emt 0:00:45] [#] aiming for Rd7.} Ke8 {[%emt 0:00:26]} 23. f3 {[%emt 0:01:01]} Rc8 {[%emt 0:00:25]} 24. Rxc8+ {[%emt 0:00:13] An uneventful encounter.   Weighted Error Value: White=0.05 (flawless) /Black=0.05 (flawless) .  OK:         	White=5     	Black=5} 1/2-1/2

[Event "FIJ Cannes 2024"]
[Site "Cannes"]
[Date "2024.02.25"]
[Round "9.3"]
[White "Barbot, Pierre"]
[Black "Li, Di"]
[Result "0-1"]
[ECO "D45"]
[WhiteElo "2426"]
[BlackElo "2563"]
[Annotator "ChessBase"]
[PlyCount "70"]
[EventDate "2024.02.20"]
[EventType "swiss"]
[EventCountry "FRA"]
[SourceTitle "playchess.com"]
[Source "ChessBase"]
[SourceQuality "1"]
[TimeControl "40/5400+30:1800+30"]

1. d4 {[%emt 0:00:07]} Nf6 {[%emt 0:01:34]} 2. c4 {[%emt 0:00:15]} e6 {[%emt 0:00:14]} 3. Nc3 {[%emt 0:00:04]} d5 {[%emt 0:01:23]} 4. Nf3 {[%emt 0:00:05]} c6 {[%emt 0:00:52]} 5. e3 {[%emt 0:00:54]} Nbd7 {[%emt 0:00:14]} 6. Be2 {[%emt 0:00:27]} Bd6 {[%emt 0:00:46]} 7. O-O {[%emt 0:00:05]} O-O {[%emt 0:00:08]} 8. b3 {[%emt 0:00:05]} b6 {[%emt 0:00:40]} 9. Bb2 {[%emt 0:00:06]} Bb7 {[%emt 0:00:02]} 10. Bd3 {[%emt 0:00:06]} Rc8 {[%emt 0:10:52]} 11. Re1 {[%emt 0:03:04]} dxc4 {[%emt 0:05:36]} 12. bxc4 {[%emt 0:00:17]} c5 {[%emt 0:06:15]} 13. d5 {[%emt 0:02:02]} exd5 {[%emt 0:01:49]} 14. cxd5 {[%emt 0:01:28]} a6 {[%emt 0:00:06]} 15. a4 {[%emt 0:09:46]} c4 {[%emt 0:05:33]} 16. Bc2 {[%emt 0:01:25]} Qc7 {[%emt 0:02:38]} 17. e4 {[%emt 0:14:08]} Rfe8 {[%emt 0:00:07]} 18. g3 {[%emt 0:01:29]} Bb4 {[%emt 0:13:10]} 19. Rb1 {[%emt 0:12:28]} Qc5 {[%emt 0:02:16]} 20. Ba1 {[%emt 0:04:59]} Ng4 {[%emt 0:03:48]} 21. Re2 {[%emt 0:00:06]} Ba5 {[%emt 0:03:33]} 22. Kg2 {[%emt 0:12:25]} f5 {[%emt 0:04:14]} 23. exf5 {[%emt 0:13:45]} Ndf6 {[%emt 0:06:11]} 24. h3 {[%emt 0:07:30]} Rxe2 {[%emt 0:07:00]} 25. Qxe2 {[%emt 0:00:05]} Re8 {[%emt 0:00:03]} 26. Qd2 {[%emt 0:00:07]} Bxd5 {[%emt 0:02:18]} 27. hxg4 {[%emt 0:03:54]} Bxf3+ {[%emt 0:00:05]} 28. Kg1 {[%emt 0:00:17]} Bxg4 {[%emt 0:01:16]} 29. Qf4 {[%emt 0:01:14]} Qc6 {[%emt 0:00:55]} 30. Kh2 {[%emt 0:07:03]} h5 {[%emt 0:00:41]} 31. Bd1 {[%emt 0:01:53]} b5 {[%emt 0:05:29]} 32. axb5 {[%emt 0:02:17]} axb5 {[%emt 0:00:06]} 33. f3 {[%emt 0:00:04]} Bc7 {[%emt 0:00:20]} 34. Qg5 {[%emt 0:00:46]} Qd6 {[%emt 0:01:10]} 35. Ne4 {[%emt 0:01:22]} Rxe4 {[%emt 0:00:22]} 0-1